[Event "1st Semana Santa Torrevieja 2022"]
[Site "Torrevieja Alicante"]
[Date "2022.04.16"]
[Round "6.14"]
[White "Rasmussen, Karsten"]
[Black "Gonzalez Guedes, Iyan"]
[Result "1/2-1/2"]
[ECO "C41"]
[WhiteElo "2412"]
[BlackElo "2251"]
[Annotator "TA"]
[PlyCount "109"]
[EventDate "2022.04.12"]
[EventType "swiss"]
[EventCountry "ESP"]
[SourceTitle "playchess.com"]
[Source "ChessBase"]
[SourceQuality "1"]
[TimeControl "5400+30"]

{[%evp 16,109,35,30,33,29,57,44,59,49,56,36,82,80,85,76,165,72,73,68,85,80,125,55,86,57,52,54,100,70,72,52,87,57,71,-43,-57,-61,-61,-111,-16,-187,-134,-129,-85,-84,-79,-120,-117,-116,0,-140,-2,-46,34,21,16,28,45,0,0,0,0,0,0,0,0,0,0,0,0,0,0,0,0,0,0,0,0,0,0,0,0,0,0,0,0,0,0,0,0,0,0,0,0,0]} 1. Nf3 {[%emt 0:00:27]} d6 {[%emt 0:00:14]} 2. d4 {[%emt 0:02:45]} Nf6 {[%emt 0:00:19]} 3. Nc3 {[%emt 0:05:34]} Nbd7 {[%emt 0:05:45]} 4. e4 {[%emt 0:01:27]} e5 {[%emt 0:00:38]} 5. Bc4 {[%emt 0:01:10]} Be7 {[%emt 0:00:32]} 6. O-O {[%emt 0:00:31]} O-O {[%emt 0:00:27]} 7. a4 {[%emt 0:05:24]} c6 {[%emt 0:01:24]} 8. Ba2 {[%emt 0:01:21]} Qc7 {[%emt 0:01:40]} 9. Re1 {[%emt 0:01:48]} Re8 {[%emt 0:07:15] C41: Philidor Defence.} 10. h3 {[%emt 0:13:25]} Bf8 {[%emt 0:03:36]} 11. Be3 {[%emt 0:06:53]} b6 {[%emt 0:09:46] [#] White is slightly better.} 12. Ng5 $146 {[%emt 0:17:28]} ({Predecessor:} 12. Qe2 exd4 13. Bxd4 h6 14. Nh4 Bb7 15. Ng6 c5 16. Nxf8 Kxf8 17. Bxf6 Nxf6 18. Qd3 {1-0 (110) Danin,A (2515)-Kessler,L (2440) Austria 2019}) 12... Re7 {[%emt 0:01:15]} 13. d5 {[%emt 0:00:05]} c5 {[%emt 0:06:15]} (13... Bb7 $14 {deserves consideration.}) 14. Bc4 {[%emt 0:05:22]} a6 {[%emt 0:02:51]} 15. Qd2 {[%emt 0:03:52] 0x0.00138d2c057ddp-1022s more active pieces. The black rooks are badly placed.} g6 {[%emt 0:04:57] [#]} (15... h6 $16) 16. Nf3 {[%emt 0:12:44]} (16. Ne6 $1 $18 {[%cal Re6c7][%mdl 512] is more deadly.} fxe6 (16... Qb8 17. Nxf8) 17. dxe6) 16... Bg7 $16 {[%emt 0:03:09]} 17. Nh4 {[%emt 0:01:09]} Re8 {[%emt 0:03:37]} 18. g4 {[%emt 0:02:14]} h5 {[%emt 0:07:17]} 19. f3 {[%emt 0:00:22]} (19. g5 $16) 19... Nf8 {[%emt 0:03:40]} 20. Qg2 {[%emt 0:06:22]} (20. Kh2 {feels hotter.} Qd8 21. g5 Qd7 22. Qg2) 20... Qd8 {[%emt 0:02:42]} 21. Qg3 {[%emt 0:00:13]} hxg4 {[%emt 0:05:40]} (21... Re7 $14) 22. hxg4 {[%emt 0:00:06]} N6h7 {[%emt 0:00:21]} 23. Ng2 {[%emt 0:05:13]} Bf6 {[%emt 0:02:56]} 24. Rf1 {[%emt 0:00:03]} Bg5 {[%emt 0:03:20]} 25. f4 {[%emt 0:00:04]} (25. Kf2 $16) 25... exf4 $15 {[%emt 0:00:32]} 26. Bxf4 {[%emt 0:00:27]} Bxf4 {[%emt 0:00:48]} 27. Qxf4 {[%emt 0:00:37]} (27. Rxf4 $15 Nd7 28. Be2) 27... Ra7 {[%emt 0:05:17]} (27... Ng5 $17 28. Kh2 Kg7) 28. e5 $2 {[%emt 0:01:25]} (28. Ne3 $11 {and White stays safe.}) 28... Ng5 {[%emt 0:00:54]} ({Black should play} 28... Rxe5 $19 {...f5 is the strong threat.} 29. Rae1 Rxe1 30. Nxe1 f5) 29. Qf6 $17 {[%emt 0:01:18]} dxe5 {[%emt 0:02:40]} 30. Qxd8 {[%emt 0:01:39]} Rxd8 {[%emt 0:00:01]} 31. Rf6 {[%emt 0:00:07]} Nd7 {[%emt 0:01:24]} 32. Rd6 {[%emt 0:00:51] [#]} Bb7 {[%emt 0:06:06]} (32... Kg7 $1 $17 {Threatens to win with ...Rh8.} 33. Ne3 Rh8) 33. Nh4 {[%emt 0:01:02] [#]} (33. Rf1 $11) 33... Kg7 {[%emt 0:01:38]} (33... Kf8 $1 $17 {[%cal Rf8e7] Strongly threatening ...Ke7.} 34. Nxg6+ fxg6 35. Rxg6 Nh3+ 36. Kh2 Nf4) 34. Rf1 {[%emt 0:00:20]} Nh3+ {[%emt 0:01:56]} ({Black should try} 34... e4 $15) 35. Kg2 $14 {[%emt 0:00:55]} Nf4+ {[%emt 0:00:14]} 36. Kg3 {[%emt 0:00:03]} Raa8 {[%emt 0:00:49]} 37. Ng2 {[%emt 0:00:18]} b5 {[%emt 0:01:16] The position is equal.} 38. axb5 {[%emt 0:00:13]} axb5 {[%emt 0:00:00]} 39. Bxb5 {[%emt 0:00:46]} (39. Nxb5 {is interesting.} Nf6 40. Rxf6 Kxf6 41. Nxf4 exf4+ 42. Rxf4+ Kg7 43. d6) 39... Nf6 {[%emt 0:01:00]} 40. Rxd8 {[%emt 0:00:42] Dancing on a razor blade.} Rxd8 41. Nxf4 {[%emt 0:00:08]} exf4+ {[%emt 0:00:06]} 42. Rxf4 {[%emt 0:00:35]} Nxd5 {[%emt 0:00:33]} 43. Nxd5 {[%emt 0:00:18]} Bxd5 $11 {[%emt 0:00:47][%mdl 4096] Endgame KRB-KRB} 44. Bd3 {[%emt 0:02:24]} Be6 {[%emt 0:01:40]} 45. Bc4 {[%emt 0:01:03]} Bxc4 {[%emt 0:01:51]} 46. Rxc4 {[%emt 0:00:04] KR-KR} Rd5 {[%emt 0:00:05]} 47. b4 {[%emt 0:01:27]} cxb4 {[%emt 0:00:27]} 48. Rxb4 {[%emt 0:00:04]} Kf6 {[%emt 0:01:15]} 49. Kf4 {[%emt 0:00:11]} Ke6 {[%emt 0:00:34]} 50. Re4+ {[%emt 0:00:25]} Kd6 {[%emt 0:00:37]} 51. c4 {[%emt 0:00:55]} Rc5 {[%emt 0:00:31]} 52. Ke3 {[%emt 0:00:37]} f5 {[%emt 0:01:19]} 53. gxf5 {[%emt 0:01:18]} gxf5 {[%emt 0:00:06]} 54. Rh4 {[%emt 0:00:08]} Ke5 {[%emt 0:00:45]} 55. Rd4 {[%emt 0:00:44] Weighted Error Value: White=0.30/Black=0.27 (precise)} 1/2-1/2

[Event "1st Semana Santa Torrevieja 2022"]
[Site "Torrevieja Alicante"]
[Date "2022.04.16"]
[Round "6.15"]
[White "Valmana Canto, Jaime"]
[Black "Carbonell Sancho, Marc"]
[Result "0-1"]
[ECO "D85"]
[WhiteElo "2401"]
[BlackElo "2215"]
[Annotator "TA"]
[PlyCount "94"]
[EventDate "2022.04.12"]
[EventType "swiss"]
[EventCountry "ESP"]
[SourceTitle "playchess.com"]
[Source "ChessBase"]
[SourceQuality "1"]
[TimeControl "5400+30"]

{[%evp 14,94,13,16,22,14,51,41,46,52,51,25,53,41,55,24,84,71,76,80,78,36,33,35,50,52,61,67,66,68,69,42,43,34,26,22,31,19,51,51,85,91,151,158,170,158,164,22,262,35,36,24,35,38,24,10,7,8,12,0,0,0,0,-8,-4,-14,0,-66,-72,-1252,-716,-647,-63,-57,0,-792,-693,-877,-877,-1014,-986,-790,-765]} 1. d4 {[%emt 0:07:51]} Nf6 {[%emt 0:02:17]} 2. c4 {[%emt 0:00:42]} g6 {[%emt 0:00:07]} 3. Nc3 {[%emt 0:00:06]} d5 {[%emt 0:00:18]} 4. cxd5 {[%emt 0:00:31]} Nxd5 {[%emt 0:00:07]} 5. Bd2 {[%emt 0:00:17]} Bg7 {[%emt 0:00:12]} 6. e4 {[%emt 0:00:10]} Nxc3 {[%emt 0:04:48]} 7. Bxc3 {[%emt 0:00:07]} O-O {[%emt 0:00:06]} 8. Qd2 {[%emt 0:04:56]} c5 {[%emt 0:11:58][%cal Rc5d4] D85: Exchange Grünfeld: Unusual White 7th moves and lines with 7 Nf3.} 9. d5 {[%emt 0:00:16]} Qd6 {[%emt 0:10:18]} 10. Nf3 {[%emt 0:33:47]} Nd7 {[%emt 0:01:42] White is slightly better.} 11. Bxg7 {[%emt 0:00:08]} Kxg7 {[%emt 0:00:04]} 12. Qc3+ {[%emt 0:00:06]} f6 {[%emt 0:00:40] [#]} 13. h4 $146 {[%emt 0:11:24]} ({Predecessor:} 13. Be2 a6 14. a4 Ne5 15. a5 Nxf3+ 16. Bxf3 Bd7 17. O-O e5 18. dxe6 Bxe6 19. Rac1 {½-½ (31) Papin,V (2514)-Smirnov,A (2318) Melbourne 2013}) 13... h6 {[%emt 0:16:51]} 14. O-O-O {[%emt 0:08:28]} Rb8 {[%emt 0:04:37]} (14... a6 $11) 15. Bb5 $1 $16 {[%emt 0:14:03]} Ne5 {[%emt 0:04:47]} 16. Nxe5 {[%emt 0:00:02]} Qxe5 {[%emt 0:02:33]} 17. Qxe5 {[%emt 0:02:21]} ({Worse is} 17. Qxc5 Bg4 18. Qd4 Bxd1 19. Rxd1 a6 $17) 17... fxe5 {[%emt 0:00:03]} 18. f3 {[%emt 0:01:02]} a6 {[%emt 0:02:20]} 19. Be2 {[%emt 0:00:53]} Rf6 {[%emt 0:07:00]} 20. Kd2 {[%emt 0:00:02]} Rd6 {[%emt 0:07:14]} 21. Ke3 {[%emt 0:04:21]} Bd7 {[%emt 0:02:36]} 22. Rd2 {[%emt 0:00:49]} Kf6 {[%emt 0:02:35]} 23. a3 {[%emt 0:01:57]} b5 {[%emt 0:07:25]} 24. b3 {[%emt 0:00:21]} e6 {[%emt 0:00:41]} 25. Rhd1 {[%emt 0:01:19]} a5 {[%emt 0:02:06]} 26. g3 {[%emt 0:02:03]} Ke7 {[%emt 0:03:28]} 27. f4 {[%emt 0:03:19]} Kf6 {[%emt 0:00:04] [#]} (27... exf4+ $142 28. gxf4 h5) 28. Rc1 $1 {[%emt 0:01:39]} Rc8 {[%emt 0:00:47] [#]} 29. Rdc2 $1 {[%emt 0:00:01]} exd5 {[%emt 0:01:18]} 30. Rxc5 {[%emt 0:00:01]} (30. fxe5+ $18 Kxe5 31. Rxc5 Rxc5 32. Rxc5) 30... Rxc5 $2 {[%emt 0:01:46]} (30... Re8 $1 $11 {and Black stays safe.}) 31. Rxc5 $2 {[%emt 0:00:41]} (31. fxe5+ $18 Kxe5 32. Rxc5) 31... exf4+ $14 {[%emt 0:01:31]} 32. gxf4 {[%emt 0:00:02] Strongly threatening e5+.} dxe4 {[%emt 0:00:09]} 33. Bxb5 $16 {[%emt 0:00:20][%mdl 4096] Endgame KRB-KRB} Be6 {[%emt 0:03:08]} 34. b4 {[%emt 0:01:34]} axb4 {[%emt 0:00:02]} 35. axb4 {[%emt 0:00:04] Hoping for Rc6.} Rd1 $1 {[%emt 0:00:15]} 36. Bc6 {[%emt 0:01:34]} Bf5 {[%emt 0:00:48]} 37. Bb5 {[%emt 0:01:09]} Rb1 {[%emt 0:00:33]} 38. Rc6+ {[%emt 0:00:12]} Ke7 {[%emt 0:00:23]} 39. Rc4 {[%emt 0:00:05]} Kd6 {[%emt 0:01:00]} 40. Bc6 {[%emt 0:01:14]} (40. Rc6+ $11 Ke7 41. Be2) 40... Rb3+ $15 {[%emt 0:00:18]} 41. Kd2 $2 {[%emt 0:00:30][%mdl 8192]} (41. Ke2 $17) 41... e3+ $19 {[%emt 0:00:04]} 42. Ke1 {[%emt 0:00:16]} Bg4 $2 {[%emt 0:01:19]} (42... Bd3 $19 {( -> ...Rb1+)} 43. Rc1 Rb2) 43. Be4 $15 {[%emt 0:00:32] Inhibits Rb1+.} e2 {[%emt 0:00:41]} (43... Ra3 $15 44. Rc6+ Ke7 45. Rc7+ Ke6 46. Rc6+ Ke7 47. Rc7+ Kd6 48. Rc6+ Kd7) 44. Bxg6 $2 {[%emt 0:00:43][%mdl 8192]} (44. Rd4+ $11 Kc7 45. Bd3 (45. Bxg6 $2 Rc3 $19)) 44... Rg3 $19 {[%emt 0:00:11] Black is clearly winning.} 45. Re4 {[%emt 0:00:30]} Rg1+ {[%emt 0:00:05]} 46. Kf2 {[%emt 0:00:02]} Rf1+ {[%emt 0:00:17]} 47. Kg3 {[%emt 0:00:01]} h5 {[%emt 0:00:19] Quite a comeback for Black.  Weighted Error Value: White=0.67/Black=0.33} 0-1

[Event "1st Semana Santa Torrevieja 2022"]
[Site "Torrevieja Alicante"]
[Date "2022.04.16"]
[Round "6.16"]
[White "Vega Gutierrez, Sabrina"]
[Black "Ulasevich, Sergei"]
[Result "0-1"]
[ECO "B36"]
[WhiteElo "2385"]
[BlackElo "2199"]
[Annotator "TA"]
[PlyCount "83"]
[EventDate "2022.04.12"]
[EventType "swiss"]
[EventCountry "ESP"]
[SourceTitle "playchess.com"]
[Source "ChessBase"]
[SourceQuality "1"]
[TimeControl "5400+30"]

{[%evp 18,83,53,39,47,42,59,29,41,8,12,11,14,0,0,0,5,3,18,14,14,14,40,35,64,54,72,64,48,56,95,110,157,112,135,133,233,238,289,289,329,292,327,239,377,215,191,142,136,114,338,335,271,225,229,194,475,221,910,893,1110,-997,-1012,-768,-698,-29976,-29977,-2029]} 1. e4 {[%emt 0:00:06] Giri,Anish} c5 {[%emt 0:00:35]} 2. Nf3 {[%emt 0:00:51]} Nc6 {[%emt 0:00:56]} 3. d4 {[%emt 0:00:08]} cxd4 {[%emt 0:00:02]} 4. Nxd4 {[%emt 0:00:08]} g6 {[%emt 0:00:05]} 5. c4 {[%emt 0:00:12]} Nf6 {[%emt 0:00:07]} 6. Nc3 {[%emt 0:00:10]} d6 {[%emt 0:00:05]} 7. Be2 {[%emt 0:00:12]} Nxd4 {[%emt 0:00:07]} 8. Qxd4 {[%emt 0:00:07]} Bg7 {[%emt 0:00:03]} 9. Be3 {[%emt 0:00:25]} O-O {[%emt 0:00:11]} 10. Qd3 {[%emt 0:00:22]} a5 {[%emt 0:01:24] is cutting edge theory. B36: Sicilian: Maroczy Bind: Gurgenidze System.} 11. O-O {[%emt 0:00:23]} Bd7 {[%emt 0:00:47]} 12. Bd4 {[%emt 0:01:43]} Bc6 {[%emt 0:01:03] [#] White has an edge.} 13. h4 $146 {[%emt 0:15:37][%cal Bh2h4,Bh4h5,Bh5h6][%mdl 32]} ({Predecessor:} 13. b3 Nd7 14. Bxg7 Kxg7 15. Qd4+ Kg8 16. Rfd1 Qb6 17. Qxb6 Nxb6 18. f4 f5 19. exf5 Rxf5 {1-0 (58) Giri,A (2776)-Carlsen,M (2847) chess24.com INT 2021 CBM 201 [Giri,Anish]}) 13... Nd7 {[%emt 0:13:51]} 14. Bxg7 {[%emt 0:03:36]} Kxg7 {[%emt 0:00:10]} 15. h5 {[%emt 0:04:45]} Nc5 {[%emt 0:00:48]} 16. Qe3 {[%emt 0:01:07]} e5 {[%emt 0:01:20]} 17. h6+ {[%emt 0:02:48]} Kg8 {[%emt 0:05:05]} 18. Rad1 {[%emt 0:00:53]} Ne6 {[%emt 0:01:48]} (18... Qe7 {seems wilder.} 19. f4 exf4 20. Qxf4 Rae8) 19. Nb5 {[%emt 0:13:30]} Bxb5 {[%emt 0:11:13]} (19... Nf4 {keeps more tension.} 20. Rfe1 Bxb5 21. cxb5 Qg5) 20. cxb5 {[%emt 0:00:19]} Rc8 {[%emt 0:00:02] Prevents Bc4.} 21. Bg4 {[%emt 0:09:45]} f5 {[%emt 0:04:36]} 22. exf5 {[%emt 0:00:23]} (22. Qb3 $6 Qe7 23. exf5 gxf5 $11) 22... gxf5 {[%emt 0:00:05]} 23. Bf3 $36 {[%emt 0:03:38][%mdl 2048] White has good play.} (23. Qb3 Qe7 24. Bf3 e4 $15) 23... e4 {[%emt 0:07:07]} 24. Rd5 $1 {[%emt 0:02:55]} Qe7 {[%emt 0:11:37]} (24... Rf6 $142) 25. Bd1 {[%emt 0:03:58] Strongly threatening Bb3.} Kh8 {[%emt 0:11:24]} 26. Bb3 {[%emt 0:03:29] aiming for Rfd1.} Rf6 {[%emt 0:00:51]} (26... Nc5 $16) 27. Rfd1 $18 {[%emt 0:05:04]} Rd8 {[%emt 0:04:57]} 28. b6 {[%emt 0:04:01] Inhibits Nc7.} Qf8 {[%emt 0:13:19]} 29. Rxa5 {[%emt 0:04:16]} Nc5 {[%emt 0:00:10]} 30. Qd4 {[%emt 0:04:19][%cal Oa5c5] Black must now prevent Rxc5!} Re8 {[%emt 0:00:19]} (30... Nxb3 $142 31. axb3 Qxh6 32. Rxf5 Rdf8) 31. Bd5 {[%emt 0:04:26]} (31. Bc4 $142) 31... Qxh6 {[%emt 0:00:25]} 32. b4 {[%emt 0:00:27]} ({White should play} 32. Ra3 $18) 32... Nd3 $16 {[%emt 0:00:40] [#]} 33. Ra3 $1 {[%emt 0:07:07]} (33. Bxb7 Nf4 34. Re1 Ne2+ 35. Rxe2 Qc1+ 36. Re1 (36. Kh2 Qh6+ 37. Kg1 Qc1+ 38. Kh2 Qh6+ 39. Kg1 $11) 36... Qxe1+ 37. Kh2 Re5 38. Rxe5 Rh6+ 39. Kg3 Rg6+ 40. Kh2 Rh6+ 41. Kg3 Rg6+ 42. Kh2 Rh6+ $11) (33. Ra7 $6 Qg6 34. Kf1 (34. Rxb7 Nf4 $15) 34... Qh6 35. Bxb7 (35. Kg1 $2 Nf4 $19) 35... Nf4 $11) 33... Qg5 $2 {[%emt 0:05:23]} (33... Nf4 $16 34. Bc4 Rg8) 34. Raxd3 $18 {[%emt 0:03:22]} exd3 {[%emt 0:00:07]} 35. a4 {[%emt 0:02:49]} d2 {[%emt 0:03:14] ( -> ...Re1+)} 36. Qxd2 {[%emt 0:00:15]} f4 $2 {[%emt 0:01:53]} (36... Qxd2 {was worth a try.} 37. Rxd2 f4) 37. Qd4 {[%emt 0:00:52]} (37. Bxb7 $142 d5 38. Qc3 (38. Qxd5 Qxd5 39. Bxd5 Rxb6 $16) (38. Bxd5 Rxb6 39. Bf3 Ra6 $18)) 37... Re5 $2 {[%emt 0:00:20]} (37... Qe5 38. Qa1 (38. Bxb7 Qxd4 39. Rf1 Qxb6) 38... Qxa1 39. Rxa1 Rb8) 38. Bxb7 {[%emt 0:00:25]} Rh6 {[%emt 0:01:05]} 39. Qc3 $4 {[%emt 0:00:36][%mdl 8192]} (39. Bf3 $18) 39... Qh5 $19 {[%emt 0:00:54][%csl Gh6][%cal Rh5h1]} 40. Qc8+ {[%emt 0:00:10] [#]} Kg7 $1 {[%emt 0:00:13][%cal Rh5d1]} 41. Qd7+ {[%emt 0:00:32]} Kf8 {[%emt 0:00:13][%cal Rh5d1]} 42. g4 {[%emt 0:01:19] Black used his chance.  Weighted Error Value: White=0.52/Black=0.34} 0-1

[Event "1st Semana Santa Torrevieja 2022"]
[Site "Torrevieja Alicante"]
[Date "2022.04.16"]
[Round "7.1"]
[White "Grigoryan, Karen H."]
[Black "Cuenca Jimenez, Jose Fernando"]
[Result "1-0"]
[ECO "E20"]
[WhiteElo "2636"]
[BlackElo "2552"]
[Annotator "TA"]
[PlyCount "115"]
[EventDate "2022.04.12"]
[EventType "swiss"]
[EventCountry "ESP"]
[SourceTitle "playchess.com"]
[Source "ChessBase"]
[SourceQuality "1"]
[TimeControl "5400+30"]

{[%evp 9,115,-8,-15,-3,-8,-45,-12,-31,-36,-39,-25,-31,-35,-46,-33,-96,0,0,0,0,36,34,31,-10,-27,-47,-29,-17,0,0,-6,-52,-67,-63,-65,-92,-10,-87,-28,-93,-88,-96,-61,-114,-93,-204,0,0,0,0,0,-1,-4,-2,-10,-7,15,4,2,0,0,0,24,16,33,32,43,26,28,17,40,18,27,4,8,8,14,0,32,35,85,81,322,322,322,311,320,304,303,303,283,278,287,260,613,630,1475,1149,8003,6994,8180,7974,6372,5608,4692,5097,29966,29963]} 1. d4 {[%emt 0:00:26][%cal Bd2d4,Bd4d5][%mdl 32]} Nf6 {[%emt 0:00:24]} 2. c4 {[%emt 0:00:08]} e6 {[%emt 0:00:18]} 3. Nc3 {[%emt 0:00:09]} Bb4 {[%emt 0:00:23]} 4. f3 {[%emt 0:00:38]} c5 {[%emt 0:01:27]} 5. d5 {[%emt 0:00:20]} b5 {[%emt 0:00:45]} 6. e4 {[%emt 0:00:12] E20: Nimzo-Indian: 4 g3 and 4 f3.} O-O {[%emt 0:00:43] 6...d6 gains popularity.} 7. Nge2 {[%emt 0:04:14]} bxc4 {[%emt 0:03:48] With the idea ...exd5.} 8. Nf4 {[%emt 0:02:17] The position is equal.} exd5 {[%emt 0:07:05]} 9. Nfxd5 {[%emt 0:01:41]} Nxd5 {[%emt 0:01:53]} 10. Qxd5 {[%emt 0:00:09]} Qh4+ {[%emt 0:07:14] [#]} 11. Kd1 $146 {[%emt 0:02:10]} ({Predecessor:} 11. g3 Qf6 12. Kf2 Bxc3 13. bxc3 Qxc3 14. Qxa8 Qxa1 15. Be3 Qxa2+ 16. Be2 Ba6 17. Qd5 {0-1 (41) Yordanov,L (2307)-Kiremitciyan,A (2281) Chess.com INT 2020}) 11... Nc6 {[%emt 0:04:02]} 12. a3 {[%emt 0:01:07]} (12. Bxc4 $15 Na5 13. Be2 (13. Qxa8 $2 {perishes.} Nxc4 14. Qd5 Ba6 $19)) 12... Ba5 {[%emt 0:15:31]} (12... Bxc3 $17 13. bxc3 Ba6) 13. Bxc4 $11 {[%emt 0:08:23]} Bb7 {[%emt 0:11:55]} 14. Qxc5 {[%emt 0:14:04]} Bxc3 {[%emt 0:04:20]} 15. bxc3 {[%emt 0:04:10]} Rac8 {[%emt 0:00:04]} 16. Rb1 {[%emt 0:06:48]} Nd8 {[%emt 0:05:37]} 17. Qb4 {[%emt 0:08:05]} a5 {[%emt 0:05:23][%mdl 1024] Black has compensation.} 18. Qb3 {[%emt 0:05:01]} Qf2 {[%emt 0:05:39]} 19. Qa2 {[%emt 0:07:20]} Qc5 {[%emt 0:00:48]} 20. Bb3 {[%emt 0:00:33]} (20. Bd5 $1 $11 {was preferrable.} Bxd5 21. Qxd5 Qxc3 22. Ke2) 20... a4 $15 {[%emt 0:05:17]} 21. Bd5 {[%emt 0:05:55]} Bxd5 {[%emt 0:00:32]} 22. exd5 {[%emt 0:00:20]} f6 {[%emt 0:03:18]} (22... Qxc3 $17 {And now ...Qd3+ would win.} 23. Qd2 Qe5) 23. Rb4 {[%emt 0:01:26]} (23. Qd2 $1 $11) 23... Nf7 {[%emt 0:01:14]} ({Black should play} 23... Qxc3 $17 24. Qd2 Qe5) 24. Re1 {[%emt 0:05:20]} (24. Qd2 $11) 24... Qxc3 $17 {[%emt 0:06:49]} 25. Qd2 {[%emt 0:00:22]} Qc5 {[%emt 0:03:18]} 26. Bb2 {[%emt 0:05:46] Prevents Ne5.} (26. Rxa4 $15 Nd6 27. Rb4) 26... Nd6 {[%emt 0:00:49]} 27. Re2 {[%emt 0:01:02]} (27. h3 $17) 27... Rb8 $2 {[%emt 0:04:09]} (27... Nc4 $1 $19 {[%cal Rc4d2]} 28. Qd4 Nxb2+ 29. Qxb2 Qg1+ 30. Re1 Qxh2) 28. Qd4 $11 {[%emt 0:01:22]} Qxd4+ {[%emt 0:01:01]} 29. Rxd4 {[%emt 0:15:32]} Ra8 30. Bc3 {[%emt 0:00:00]} Nb5 {[%emt 0:00:14][%csl LRa3,LRc3,LRd4]} 31. Rd3 {[%emt 0:00:00]} Nxc3+ {[%emt 0:00:25]} 32. Rxc3 {[%emt 0:00:00][%mdl 4096] Endgame KRR-KRR} Rfc8 {[%emt 0:01:27]} 33. Kc2 {[%emt 0:00:00]} Kf7 {[%emt 0:00:27] Against Re7+} 34. Kd3 {[%emt 0:00:00]} Re8 {[%emt 0:00:03]} 35. Rxe8 {[%emt 0:00:00]} Rxe8 {[%emt 0:00:22] KR-KR} 36. Rc4 {[%emt 0:00:00]} Re5 {[%emt 0:00:22]} 37. Rxa4 {[%emt 0:01:00]} Rxd5+ {[%emt 0:00:07]} 38. Kc3 {[%emt 0:00:15]} Ke7 {[%emt 0:01:18]} 39. Rd4 {[%emt 0:00:41]} Rh5 {[%emt 0:00:39]} 40. h3 {[%emt 0:00:37]} Kd8 {[%emt 0:00:17]} 41. Rc4 {[%emt 0:01:15]} Re5 $1 {[%emt 0:00:28]} 42. Kb3 {[%emt 0:00:07]} Rb5+ {[%emt 0:00:38]} 43. Kc3 {[%emt 0:00:50]} d6 {[%emt 0:00:36]} 44. a4 {[%emt 0:00:08][%cal Ba3a4,Ba4a5,Ba5a6][%mdl 32]} Rb1 {[%emt 0:00:16]} (44... Re5 $14) 45. a5 $16 {[%emt 0:01:00] Threatens to win with Ra4.} Rb5 $2 {[%emt 0:00:40] Loses the game.} (45... Rg1 $16) 46. Ra4 $18 {[%emt 0:00:05]} Rc5+ {[%emt 0:00:52]} 47. Kd4 {[%emt 0:00:22] a6 is the strong threat.} Rf5 {[%emt 0:00:18]} 48. Ra1 {[%emt 0:01:16] Threatening mate with a6.} Kc7 {[%emt 0:00:11] [#]} 49. a6 {[%emt 0:00:06] a7 would kill now.} Kb8 {[%emt 0:00:02] [#]} 50. Rb1+ $1 {[%emt 0:00:32]} Ka8 {[%emt 0:01:27]} 51. Rb7 {[%emt 0:00:21]} Rg5 {[%emt 0:00:10]} (51... g5 52. Rxh7 Ra5) 52. g4 {[%emt 0:00:05]} h5 {[%emt 0:00:22]} 53. h4 {[%emt 0:01:00]} Rg6 {[%emt 0:00:30]} 54. Ke4 {[%emt 0:02:15]} ({Less strong is} 54. gxh5 Rh6 $16) 54... hxg4 {[%emt 0:00:13]} 55. Kf5 $1 {[%emt 0:00:05][%csl LRg4,LRg6][%mdl 64] Deflection, Double Attack} Rh6 {[%emt 0:00:17]} 56. fxg4 {[%emt 0:00:14]} Rxh4 {[%emt 0:01:28]} 57. Rxg7 {[%emt 0:00:07]} Rh6 {[%emt 0:00:19]} 58. Rd7 {[%emt 0:00:46] Weighted Error Value: White=0.17 (very precise) /Black=0.53} 1-0